lending/lending_fUSD_20250121
["ID","MTS","AMOUNT","RATE_DAILY","PERIOD"]
[349864463,1737466287024,-634.38,0.00021937,2]
[349864464,1737466287035,-742.16,0.00021937,2]
[349864465,1737466287045,-1820.05,0.00021937,2]
[349864466,1737466287055,-625.3,0.00021937,2]
[349864467,1737466287065,-500.0,0.00021937,2]
[349864468,1737466287075,-945.55,0.00021937,2]
[349864469,1737466287084,-4665.95,0.00021937,2]
[349864470,1737466287094,-631.46,0.00021937,2]
[349864471,1737466287104,-1528.23,0.00021937,2]
[349864472,1737466287114,-3600.11,0.00021937,2]
[349864473,1737466287124,-500.0,0.00021937,2]
[349864474,1737466287136,-746.7,0.00021937,2]
[349864475,1737466287146,-500.0,0.00021937,2]
[349864476,1737466287156,-1112.34,0.00021937,2]
[349864477,1737466287166,-2399.14,0.00021937,2]
[349864478,1737466287175,-1080.97,0.00021937,2]
[349864479,1737466287186,-1341.62,0.00021937,2]
[349864480,1737466287195,-500.0,0.00021937,2]
[349864481,1737466287205,-902.64,0.00021937,2]
[349864482,1737466287216,-500.0,0.00021937,2]
[349864483,1737466287226,-1221.03,0.00021937,2]
[349864484,1737466287237,-2340.6,0.00021937,2]
[349864485,1737466287246,-3326.08,0.00021937,2]
[349864486,1737466287256,-1332.4,0.00021937,2]
[349864487,1737466287266,-2333.74,0.00021937,2]
[349864488,1737466287276,-500.0,0.00021937,2]
[349864489,1737466287286,-906.05,0.00021937,2]
[349864490,1737466287296,-625.12,0.00021937,2]
[349864491,1737466287308,-151.0,0.00021937,7]
[349864492,1737466287317,-639.22,0.00021937,2]
[349864493,1737466287327,-1167.19,0.00021937,2]
[349864494,1737466287337,-3405.97,0.00021937,2]
[349864495,1737466287347,-3078.63,0.00021937,2]
[349864496,1737466287358,-151.721084,0.00021937,7]
[349864497,1737466287372,-1600.11,0.00021937,2]
[349864498,1737466287607,-500.0,0.00021937,2]
[349864499,1737466287618,-151.0,0.00021937,7]
[349864500,1737466287628,-151.0,0.00021937,7]
[349864501,1737466287639,-500.0,0.00021937,2]
[349864502,1737466287649,-151.0,0.00021937,7]
[349864503,1737466287659,-639.37,0.00021937,2]
[349864504,1737466287669,-500.0,0.00021937,2]
[349864505,1737466287679,-500.0,0.00021937,2]
[349864506,1737466287689,-151.0,0.00021937,7]
[349864507,1737466287699,-500.0,0.00021937,2]
[349864508,1737466287708,-500.0,0.00021937,2]
[349864509,1737466287718,-770.84,0.00021937,2]
[349864510,1737466287731,-646.21,0.00021937,2]
[349864511,1737466287741,-151.0,0.00021937,7]
[349864512,1737466287751,-1159.43,0.00021937,2]
[349864513,1737466287761,-568.04,0.00021937,2]
[349864514,1737466287771,-752.81,0.00021937,2]
[349864515,1737466287780,-151.0,0.00021937,7]
[349864516,1737466287790,-659.13,0.00021937,2]
[349864517,1737466287800,-1525.3,0.00021937,2]
[349864518,1737466287814,-3043.8,0.00021937,2]
[349864519,1737466287823,-2613.72,0.00021937,2]
[349864520,1737466287833,-780.92,0.00021937,2]
[349864521,1737466287844,-195.484496,0.00021937,7]
[349864522,1737466287855,-1143.64,0.00021937,2]
[349864523,1737466287865,-195.484496,0.00021937,7]
[349864524,1737466287874,-207.038256,0.00021937,7]
[349864525,1737466287884,-207.038256,0.00021937,7]
[349864526,1737466287894,-1366.15,0.00021937,2]
[349864527,1737466287904,-500.0,0.00021937,2]
[349864528,1737466287915,-151.0,0.00021937,7]
[349864529,1737466287924,-705.38,0.00021938,2]
[349864530,1737466287934,-500.0,0.00021945,2]
[349864531,1737466287945,-4916.86314053,0.0002195,2]
[349864532,1737466287978,-500.0,0.00019452,2]
[349864533,1737466287987,-16432.59451188,0.0002195,2]
[349864534,1737466288003,-31488.0,0.0002195,2]
[349864535,1737466288434,-500.0,0.00019178,2]
[349864536,1737466288443,-500.0,0.00019178,2]
[349864537,1737466288453,-500.0,0.00019452,2]
[349864538,1737466288462,-500.0,0.00019452,2]
[349864539,1737466288472,-500.0,0.00019471,2]
[349864540,1737466288481,-150.0,0.00019493,2]
[349864541,1737466288491,-150.0,0.00019696,2]
[349864542,1737466288500,-500.0,0.00019726,2]
[349864543,1737466288510,-500.0,0.00019726,2]
[349864544,1737466288519,-500.0,0.00019745,2]
[349864545,1737466288529,-552.70145311,0.0002,2]
[349864546,1737466288538,-500.0,0.0002,2]
[349864547,1737466288548,-500.0,0.00020019,2]
[349864548,1737466288561,-1596.21,0.00020141,2]
[349864549,1737466288570,-150.0,0.00020145,2]
[349864550,1737466288580,-13389.08854689,0.00020187,2]
[349864551,1737466288631,-303.999994,0.00019178,2]
[349864552,1737466410879,285.7,0.00018914,30]
[349864553,1737466411455,285.7,0.00021498,30]
[349864554,1737466418110,50000.0,0.00022658,30]
[349864555,1737466421681,50000.0,0.00022658,31]
[349864556,1737466425046,50000.0,0.00022658,32]
[349864557,1737466428385,50000.0,0.00022658,33]
[349864558,1737466431636,50000.0,0.00022658,34]
[349864559,1737466602999,-550.0,0.00015,2]
[349864561,1737466804157,219.0,0.00024,120]
[349864562,1737466804487,154.0,0.00024,120]
[349864563,1737466812645,50000.0,0.00022654,30]
[349864564,1737466819867,50000.0,0.00022654,31]
[349864565,1737466823443,50000.0,0.00022654,32]
[349864566,1737466826896,50000.0,0.00022654,33]
[349864567,1737466830467,50000.0,0.00022654,34]
[349864568,1737466900286,654.56642921,0.00022654,30]
[349864576,1737467380790,154.73,0.00010137,2]
[349864582,1737467432400,-667.02,0.00016303,2]
[349864583,1737467432409,-600.0,0.00017,2]
[349864584,1737467432419,-313.824306,0.0001791,2]
[349864585,1737467432429,-293.00992171,0.00018,2]
[349864586,1737467432450,-115.07142191,0.00018,2]
[349864587,1737467432461,-250.0,0.00018014,2]
[349864588,1737467432470,-236.05,0.00018082,2]
[349864590,1737467432479,-190.07,0.00018168,2]
[349864592,1737467432489,-168.02,0.00018263,2]
[349864594,1737467432500,-248.05,0.00018293,2]
[349864596,1737467432509,-150.0,0.00018301,2]
[349864598,1737467432519,-250.0,0.00018325,2]
[349864600,1737467432529,-1000.0,0.00018348,2]
[349864601,1737467432538,-200.0,0.00018379,2]
[349864602,1737467432548,-667.02,0.00018567,2]
[349864603,1737467432558,-154.73,0.00018594,2]
[349864604,1737467432568,-489.668,0.00018599,2]
[349864605,1737467432579,-488.0518333,0.00018694,2]
[349864606,1737467432597,-26081.4354203,0.00018694,2]
[349864607,1737467432607,-236.05,0.00018751,2]
[349864608,1737467432616,-231.94,0.00018761,2]
[349864609,1737467432626,-874.71580382,0.000189,2]
[349864610,1737467432636,-5328.98022259,0.00019,2]
[349864611,1737467432645,-650.0,0.00019,2]
[349864612,1737467432655,-1600.34777952,0.00019078,2]
[349864613,1737467432664,-2500.0,0.00019078,2]
[349864614,1737467432673,-5000.0,0.00019078,2]
[349864615,1737467432683,-917.0,0.00019157,2]
[349864616,1737467432693,-500.0,0.00019178,2]
[349864617,1737467432702,-500.0,0.00019178,2]
[349864618,1737467432711,-500.0,0.00019178,2]
[349864619,1737467432721,-500.0,0.00019178,2]
[349864620,1737467432731,-500.0,0.00019178,2]
[349864621,1737467432741,-500.0,0.00019178,2]
[349864622,1737467432752,-500.0,0.00019178,2]
[349864623,1737467432762,-500.0,0.00019178,2]
[349864624,1737467432771,-500.0,0.00019178,2]
[349864625,1737467432781,-500.0,0.00019178,2]
[349864626,1737467432791,-500.0,0.00019178,2]
[349864627,1737467432800,-562.8963517,0.00019178,2]
[349864628,1737467432809,-500.0,0.00019178,2]
[349864629,1737467432819,-500.0,0.00019178,2]
[349864630,1737467432828,-500.0,0.00019178,2]
[349864631,1737467432838,-500.0,0.00019178,2]
[349864632,1737467432848,-500.0,0.00019178,2]
[349864634,1737467432858,-500.0,0.00019178,2]
[349864636,1737467432867,-500.0,0.00019178,2]
[349864638,1737467432877,-500.0,0.00019178,2]
[349864640,1737467432886,-500.0,0.00019178,2]
[349864642,1737467432895,-500.0,0.00019178,2]
[349864644,1737467432904,-500.0,0.00019178,2]
[349864645,1737467432914,-500.0,0.00019178,2]
[349864647,1737467432923,-500.0,0.00019178,2]
[349864650,1737467432933,-500.0,0.00019178,2]
[349864652,1737467432943,-500.0,0.00019178,2]
[349864654,1737467432952,-500.0,0.00019178,2]
[349864655,1737467432962,-500.0,0.00019178,2]
[349864658,1737467432971,-517.87201861,0.00019178,2]
[349864660,1737467432981,-500.0,0.00019178,2]
[349864662,1737467432991,-500.0,0.00019178,2]
[349864664,1737467433004,-500.0,0.00019178,2]
[349864665,1737467433014,-500.0,0.00019178,2]
[349864668,1737467433025,-500.0,0.00019178,2]
[349864669,1737467433035,-500.0,0.00019178,2]
[349864672,1737467433045,-500.0,0.00019178,2]
[349864674,1737467433056,-500.0,0.00019178,2]
[349864676,1737467433066,-500.0,0.00019178,2]
[349864678,1737467433080,-500.0,0.00019178,2]
[349864680,1737467433089,-500.0,0.00019178,2]
[349864682,1737467433099,-500.0,0.00019178,2]
[349864684,1737467433110,-513.82876711,0.00019178,2]
[349864686,1737467433121,-500.0,0.00019178,2]
[349864688,1737467433131,-500.0,0.00019178,2]
[349864690,1737467433141,-507.31740979,0.00019178,2]
[349864692,1737467433151,-367.16102376,0.00019178,2]
[349864701,1737467433228,-132.83897624,0.00019178,2]
[349864703,1737467433240,-500.0,0.00019178,2]
[349864705,1737467433253,-500.0,0.00019178,2]
[349864707,1737467433263,-198.69770624,0.00019178,2]
[349864709,1737467433273,-500.0,0.00019178,2]
[349864711,1737467433283,-500.0,0.00019178,2]
[349864713,1737467433294,-500.0,0.00019178,2]
[349864715,1737467433304,-500.0,0.00019178,2]
[349864717,1737467433314,-500.0,0.00019178,2]
[349864719,1737467433324,-500.0,0.00019178,2]
[349864721,1737467433335,-500.0,0.00019178,2]
[349864723,1737467433345,-500.0,0.00019178,2]
[349864725,1737467433355,-500.0,0.00019178,2]
[349864727,1737467433365,-500.0,0.00019178,2]
[349864729,1737467433376,-500.0,0.00019178,2]
[349864731,1737467433386,-500.0,0.00019178,2]
[349864733,1737467433396,-500.0,0.00019178,2]
[349864735,1737467433406,-500.0,0.00019178,2]
[349864737,1737467433415,-500.0,0.00019178,2]
[349864739,1737467433425,-500.0,0.00019178,2]
[349864740,1737467433436,-500.0,0.00019178,2]
[349864741,1737467433445,-500.0,0.00019178,2]
[349864742,1737467433454,-500.0,0.00019178,2]
[349864743,1737467433464,-191.62196298,0.00019178,2]
[349864744,1737467433474,-500.0,0.00019178,2]
[349864745,1737467433484,-500.0,0.00019178,2]
[349864746,1737467433494,-500.0,0.00019178,2]
[349864748,1737467433505,-500.0,0.00019178,2]
[349864750,1737467433514,-500.0,0.00019178,2]
[349864752,1737467433524,-500.0,0.00019178,2]
[349864754,1737467433534,-500.0,0.00019178,2]
[349864756,1737467433544,-500.0,0.00019178,2]
[349864758,1737467433554,-500.0,0.00019178,2]
[349864760,1737467433564,-500.0,0.00019178,2]
[349864762,1737467433574,-500.0,0.00019178,2]
[349864764,1737467433584,-500.0,0.00019178,2]
[349864766,1737467433594,-500.0,0.00019178,2]
[349864768,1737467433604,-500.0,0.00019178,2]
[349864770,1737467433614,-500.0,0.00019178,2]
[349864772,1737467433624,-504.45189979,0.00019178,2]
[349864773,1737467433634,-500.0,0.00019178,2]
[349864774,1737467433644,-500.0,0.00019178,2]
[349864775,1737467433654,-500.0,0.00019178,2]
[349864777,1737467433664,-500.0,0.00019178,2]
[349864779,1737467433675,-500.0,0.00019178,2]
[349864781,1737467433685,-500.0,0.00019178,2]
[349864783,1737467433694,-500.0,0.00019178,2]
[349864785,1737467433705,-500.0,0.00019178,2]
[349864787,1737467433715,-500.0,0.00019178,2]
[349864788,1737467433726,-500.0,0.00019178,2]
[349864789,1737467433736,-500.0,0.00019178,2]
[349864790,1737467433747,-500.0,0.00019178,2]
[349864791,1737467433757,-500.0,0.00019178,2]
[349864792,1737467433767,-500.0,0.00019178,2]
[349864793,1737467433778,-500.0,0.00019178,2]
[349864794,1737467433787,-500.0,0.00019178,2]
[349864795,1737467433797,-501.33442206,0.00019178,2]
[349864796,1737467433806,-500.0,0.00019178,2]
[349864797,1737467433816,-500.0,0.00019178,2]
[349864798,1737467433825,-500.0,0.00019178,2]
[349864799,1737467433835,-500.0,0.00019178,2]
[349864800,1737467433844,-500.0,0.00019178,2]
[349864801,1737467433854,-500.0,0.00019178,2]
[349864802,1737467433863,-500.0,0.00019178,2]
[349864803,1737467433872,-500.0,0.00019178,2]
[349864804,1737467433882,-500.0,0.00019178,2]
[349864805,1737467433891,-500.0,0.00019178,2]
[349864806,1737467433901,-515.1629674,0.00019178,2]
[349864807,1737467433910,-437.13935291,0.00019178,2]
[349864808,1737467433919,-500.0,0.00019178,2]
[349864809,1737467433929,-548.01978545,0.00019178,2]
[349864810,1737467433939,-500.0,0.00019178,2]
[349864811,1737467433949,-484.62456103,0.00019178,2]
[349864812,1737467433958,-320.73557863,0.00019178,2]
[349864813,1737467433968,-500.0,0.00019178,2]
[349864814,1737467433977,-500.0,0.00019178,2]
[349864815,1737467433987,-500.0,0.00019178,2]
[349864816,1737467433998,-505.4493275,0.00019178,2]
[349864817,1737467434007,-231.86442137,0.00019178,2]
[349864818,1737467434017,-500.0,0.00019178,2]
[349864819,1737467434027,-500.0,0.00019178,2]
[349864820,1737467434036,-500.0,0.00019178,2]
[349864821,1737467434046,-500.0,0.00019178,2]
[349864822,1737467434055,-500.0,0.00019178,2]
[349864823,1737467434065,-500.0,0.00019178,2]
[349864824,1737467434079,-500.0,0.00019178,2]
[349864825,1737467434089,-500.0,0.00019178,2]
[349864826,1737467434099,-500.0,0.00019178,2]
[349864827,1737467434110,-500.0,0.00019178,2]
[349864828,1737467434121,-500.0,0.00019178,2]
[349864829,1737467434131,-500.0,0.00019178,2]
[349864830,1737467434141,-500.0,0.00019178,2]
[349864831,1737467434151,-500.0,0.00019178,2]
[349864832,1737467434161,-500.0,0.00019178,2]
[349864833,1737467434172,-500.0,0.00019178,2]
[349864834,1737467434181,-500.0,0.00019178,2]
[349864835,1737467434191,-500.0,0.00019178,2]
[349864836,1737467434200,-500.0,0.00019178,2]
[349864837,1737467434210,-500.0,0.00019178,2]
[349864838,1737467434219,-500.0,0.00019178,2]
[349864839,1737467434228,-500.0,0.00019178,2]
[349864840,1737467434238,-500.0,0.00019178,2]
[349864841,1737467434248,-500.0,0.00019178,2]
[349864842,1737467434258,-500.0,0.00019178,2]
[349864843,1737467434267,-500.0,0.00019178,2]
[349864844,1737467434277,-500.0,0.00019178,2]
[349864845,1737467434287,-300.0,0.00019178,2]
[349864846,1737467434296,-500.0,0.00019178,2]
[349864847,1737467434306,-500.0,0.00019178,2]
[349864848,1737467434315,-500.0,0.00019178,2]
[349864849,1737467434324,-500.0,0.00019178,2]
[349864850,1737467434334,-500.0,0.00019178,2]
[349864851,1737467434344,-500.0,0.00019178,2]
[349864852,1737467434354,-500.0,0.00019178,2]
[349864853,1737467434363,-500.0,0.00019178,2]
[349864854,1737467434374,-500.0,0.00019178,2]
[349864855,1737467434384,-500.0,0.00019178,2]
[349864856,1737467434395,-500.0,0.00019178,2]
[349864857,1737467434404,-500.0,0.00019178,2]
[349864858,1737467434415,-500.0,0.00019178,2]
[349864859,1737467434428,-500.0,0.00019178,2]
[349864860,1737467434439,-500.0,0.00019178,2]
[349864861,1737467434449,-500.0,0.00019178,2]
[349864862,1737467434458,-511.02399426,0.00019178,2]
[349864863,1737467434467,-500.0,0.00019178,2]
[349864864,1737467434476,-500.0,0.00019178,2]
[349864865,1737467434486,-590.0,0.00019178,2]
[349864866,1737467434497,-500.0,0.00019178,2]
[349864867,1737467434507,-500.0,0.00019178,2]
[349864868,1737467434517,-500.0,0.00019178,2]
[349864869,1737467434527,-500.0,0.00019178,2]
[349864870,1737467434536,-627.7174251,0.00019178,2]
[349864871,1737467434546,-500.0,0.00019178,2]
[349864872,1737467434556,-500.0,0.00019178,2]
[349864873,1737467434566,-500.0,0.00019178,2]
[349864874,1737467434575,-500.0,0.00019178,2]
[349864875,1737467434585,-500.0,0.00019178,2]
[349864876,1737467434595,-500.0,0.00019178,2]
[349864877,1737467434604,-500.0,0.00019178,2]
[349864878,1737467434613,-500.0,0.00019178,2]
[349864879,1737467434622,-500.0,0.00019178,2]
[349864880,1737467434632,-500.0,0.00019178,2]
[349864881,1737467434642,-500.0,0.00019178,2]
[349864882,1737467434653,-678.78,0.00019178,2]
[349864883,1737467434663,-500.0,0.00019178,2]
[349864884,1737467434673,-586.92694555,0.00019178,2]
[349864885,1737467434683,-500.0,0.00019178,2]
[349864886,1737467434693,-500.0,0.00019178,2]
[349864887,1737467434702,-500.0,0.00019178,2]
[349864888,1737467434712,-507.23191991,0.00019178,2]
[349864889,1737467434721,-500.0,0.00019178,2]
[349864890,1737467434731,-193.09562324,0.00019178,2]
[349864891,1737467434741,-500.0,0.00019178,2]
[349864892,1737467434751,-500.0,0.00019178,2]
[349864893,1737467434761,-500.0,0.00019178,2]
[349864894,1737467434960,-505.6582109,0.00019178,2]
[349864895,1737467434970,-500.0,0.00019178,2]
[349864896,1737467434980,-500.0,0.00019178,2]
[349864897,1737467434989,-500.0,0.00019178,2]
[349864898,1737467435000,-500.0,0.00019178,2]
[349864899,1737467435009,-500.0,0.00019178,2]
[349864900,1737467435019,-500.0,0.00019178,2]
[349864901,1737467435029,-500.0,0.00019178,2]
[349864902,1737467435038,-500.0,0.00019178,2]
[349864903,1737467435047,-500.0,0.00019178,2]
[349864904,1737467435057,-500.0,0.00019178,2]
[349864905,1737467435069,-451.80807502,0.00019178,2]
[349864906,1737467435079,-500.0,0.00019178,2]
[349864907,1737467435088,-500.0,0.00019178,2]
[349864908,1737467435098,-500.0,0.00019178,2]
[349864909,1737467435109,-500.0,0.00019178,2]
[349864910,1737467435119,-500.0,0.00019178,2]
[349864911,1737467435129,-500.0,0.00019178,2]
[349864912,1737467435139,-500.0,0.00019178,2]
[349864913,1737467435149,-500.0,0.00019178,2]
[349864914,1737467435159,-500.0,0.00019178,2]
[349864915,1737467435168,-500.0,0.00019178,2]
[349864916,1737467435179,-174.5036219,0.00019178,2]
[349864917,1737467435188,-500.0,0.00019349,2]
[349864918,1737467435197,-1354.16,0.00019349,2]
[349864919,1737467435207,-1212.35,0.00019349,2]
[349864920,1737467435216,-548.26,0.00019349,2]
[349864921,1737467435225,-1093.27,0.00019349,2]
[349864922,1737467435235,-523.42,0.00019349,2]
[349864923,1737467435245,-500.0,0.00019349,2]
[349864924,1737467435255,-527.39,0.00019349,2]
[349864925,1737467435264,-500.0,0.00019349,2]
[349864926,1737467435274,-805.78,0.00019349,2]
[349864927,1737467435283,-1376.43,0.00019349,2]
[349864928,1737467435292,-500.0,0.00019349,2]
[349864929,1737467435302,-726.98,0.00019349,2]
[349864930,1737467435311,-500.0,0.00019349,2]
[349864931,1737467435321,-723.33,0.00019349,2]
[349864932,1737467435331,-500.0,0.00019349,2]
[349864933,1737467435340,-500.0,0.00019349,2]
[349864934,1737467435349,-233.41206841,0.00019349,2]
[349864935,1737467435372,-874.24793159,0.00019349,2]
[349864936,1737467435382,-500.0,0.00019349,2]
[349864937,1737467435391,-500.0,0.00019349,2]
[349864938,1737467435401,-511.72,0.00019349,2]
[349864939,1737467435410,-500.0,0.00019349,2]
[349864940,1737467435420,-168.97588999,0.00019349,2]
[349864941,1737467435433,-659.71411001,0.00019349,2]
[349864942,1737467435443,-500.0,0.00019349,2]
[349864943,1737467435453,-566.99,0.00019349,2]
[349864944,1737467435463,-500.0,0.00019349,2]
[349864945,1737467435473,-500.0,0.00019349,2]
[349864946,1737467435483,-500.0,0.00019349,2]
[349864947,1737467435494,-1194.35,0.00019349,2]
[349864948,1737467435504,-1742.51,0.00019349,2]
[349864949,1737467435513,-500.0,0.00019349,2]
[349864950,1737467435523,-724.04,0.00019349,2]
[349864951,1737467435533,-500.0,0.00019349,2]
[349864952,1737467435543,-500.0,0.00019349,2]
[349864953,1737467435553,-500.0,0.00019349,2]
[349864954,1737467435563,-500.0,0.00019349,2]
[349864955,1737467435573,-500.0,0.00019349,2]
[349864956,1737467435583,-500.0,0.0001935,2]
[349864957,1737467435592,-500.0,0.0001935,2]
[349864958,1737467435602,-500.0,0.0001935,2]
[349864959,1737467435613,-500.0,0.0001935,2]
[349864960,1737467435622,-500.0,0.0001935,2]
[349864961,1737467435631,-500.0,0.0001935,2]
[349864962,1737467435641,-500.0,0.0001935,2]
[349864963,1737467435651,-492.3,0.0001935,2]
[349864964,1737467435661,-500.0,0.0001935,2]
[349864965,1737467435671,-500.0,0.0001935,2]
[349864966,1737467435680,-500.0,0.0001935,2]
[349864967,1737467435689,-500.0,0.0001935,2]
[349864968,1737467435699,-500.0,0.0001935,2]
[349864969,1737467435708,-500.0,0.0001935,2]
[349864970,1737467435718,-256.25169391,0.0001935,2]
[349864971,1737467435727,-500.0,0.0001935,2]
[349864972,1737467435736,-500.0,0.0001935,2]
[349864973,1737467435747,-500.0,0.0001935,2]
[349864974,1737467435757,-500.0,0.0001935,2]
[349864975,1737467435766,-500.0,0.0001935,2]
[349864976,1737467435775,-500.0,0.0001935,2]
[349864977,1737467435784,-500.0,0.0001935,2]
[349864978,1737467435794,-500.0,0.0001935,2]
[349864979,1737467435803,-500.0,0.0001935,2]
[349864980,1737467435813,-500.0,0.0001935,2]
[349864981,1737467435823,-500.0,0.0001935,2]
[349864982,1737467435832,-500.0,0.0001935,2]
[349864983,1737467435842,-500.0,0.0001935,2]
[349864984,1737467435853,-500.0,0.0001935,2]
[349864985,1737467435863,-1479.91,0.0001935,2]
[349864986,1737467435872,-500.0,0.0001935,2]
[349864987,1737467435882,-500.0,0.0001935,2]
[349864988,1737467435892,-514.0273447,0.0001935,2]
[349864989,1737467435902,-500.0,0.0001935,2]
[349864990,1737467435911,-500.0,0.0001935,2]
[349864991,1737467435920,-500.0,0.0001935,2]
[349864992,1737467435929,-500.0,0.0001935,2]
[349864993,1737467435939,-363.11813259,0.0001935,2]
[349864994,1737467435948,-439.34659981,0.0001935,2]
[349864995,1737467435965,-60.65340019,0.0001935,2]
[349864996,1737467435974,-500.0,0.0001935,2]
[349864997,1737467435984,-500.0,0.0001935,2]
[349864998,1737467435994,-500.0,0.0001935,2]
[349864999,1737467436004,-608.51249683,0.0001935,2]
[349865000,1737467436013,-421.947426,0.0001935,2]
[349865001,1737467436022,-500.0,0.0001935,2]
[349865002,1737467436032,-500.0,0.0001935,2]
[349865003,1737467436041,-500.0,0.0001935,2]
[349865004,1737467436050,-500.0,0.0001935,2]
[349865005,1737467436060,-500.0,0.0001935,2]
[349865006,1737467436073,-500.0,0.0001935,2]
[349865007,1737467436083,-500.0,0.0001935,2]
[349865008,1737467436092,-500.0,0.0001935,2]
[349865009,1737467436102,-500.0,0.0001935,2]
[349865010,1737467436113,-612.72,0.0001935,2]
[349865011,1737467436122,-500.0,0.0001935,2]
[349865012,1737467436132,-415.580186,0.0001935,2]
[349865013,1737467436141,-500.0,0.0001935,2]
[349865014,1737467436150,-500.0,0.0001935,2]
[349865015,1737467436160,-500.0,0.0001935,2]
[349865016,1737467436169,-500.0,0.0001935,2]
[349865017,1737467436178,-500.0,0.0001935,2]
[349865018,1737467436187,-500.0,0.0001935,2]
[349865019,1737467436197,-161.357966,0.0001935,2]
[349865020,1737467436206,-500.0,0.0001935,2]
[349865021,1737467436215,-500.0,0.0001935,2]
[349865022,1737467436224,-500.0,0.0001935,2]
[349865023,1737467436234,-500.0,0.0001935,2]
[349865024,1737467436245,-1553.35,0.0001935,2]
[349865025,1737467436255,-500.0,0.0001935,2]
[349865026,1737467436264,-162.043691,0.0001935,2]
[349865027,1737467436274,-659.36,0.0001935,2]
[349865028,1737467436283,-500.0,0.0001935,2]
[349865029,1737467436293,-200.0,0.0001935,2]
[349865030,1737467436303,-500.0,0.0001935,2]
[349865031,1737467436313,-500.0,0.0001935,2]
[349865032,1737467436322,-3609.54,0.0001935,2]
[349865033,1737467436332,-500.0,0.0001935,2]
[349865034,1737467436342,-500.0,0.0001935,2]
[349865035,1737467436351,-864.65,0.0001935,2]
[349865036,1737467436361,-500.0,0.0001935,2]
[349865037,1737467436370,-500.0,0.0001935,2]
[349865038,1737467436379,-500.0,0.0001935,2]
[349865039,1737467436390,-500.0,0.0001935,2]
[349865040,1737467436399,-1415.16,0.0001935,2]
[349865041,1737467436409,-500.0,0.0001935,2]
[349865042,1737467436418,-500.0,0.0001935,2]
[349865043,1737467436430,-280.44714319,0.0001935,2]
[349865044,1737467436439,-766.83,0.0001935,2]
[349865045,1737467436450,-500.0,0.0001935,2]
[349865046,1737467436460,-500.0,0.0001935,2]
[349865047,1737467436469,-500.0,0.0001935,2]
[349865048,1737467436479,-500.0,0.0001935,2]
[349865049,1737467436489,-1021.51,0.0001935,2]
[349865050,1737467436500,-500.0,0.0001935,2]
[349865051,1737467436510,-500.0,0.0001935,2]
[349865052,1737467436519,-500.0,0.0001935,2]
[349865053,1737467436529,-170.91650691,0.0001935,2]
[349865054,1737467436538,-500.0,0.0001935,2]
[349865055,1737467436548,-519.36717424,0.0001935,2]
[349865056,1737467436558,-500.0,0.0001935,2]
[349865057,1737467436567,-1214.72,0.0001935,2]